Cogmind - Beta 16 @@@ ROGUE MODE // 2026.02.05 @ 00:43:15 Player: Ly0ko Result: Destroyed by 3M-D0N(R) with Subdweller Machine Gun Performance ------------- Evolutions (0) 0 Regions Visited (3) 600 Robots Destroyed (7) 35 Value Destroyed (232) 232 Prototype IDs (0) 0 Alien Tech Used (0) 0 Bonus (0) 0 TOTAL SCORE: 867 Bonus ------- None Cogmind --------- Core Integrity 0/250 Matter 260/300 Energy 250/250 System Corruption 0% Temperature Cool (0) Movement Walking (190) Ox1 Location -10/Subcaves Parts ------- > --- POWER (1) -------- Ion Engine > --- PROPULSION (2) --- Aluminum Leg > --- UTILITY (2) ------ Improved Heat Sink Medium Storage Unit > --- WEAPON (2) ------- (None) > --- INVENTORY (10) --- Ion Engine Ion Engine Light Treads Light Treads Light Treads Aluminum Leg Peak State ------------ > --- POWER ------------ Ion Engine > --- PROPULSION ------- Aluminum Leg Aluminum Leg > --- UTILITY ---------- Medium Storage Unit Subdweller Optics > --- WEAPON ----------- Light Assault Rifle Subdweller Machine Gun > --- INVENTORY -------- Ion Engine Ion Engine Light Treads Light Treads Light Treads Aluminum Leg Improved Heat Sink Light Assault Rifle Datajack [Rating: 10] Favorites ----------- Power Ion Engine Engine Ion Engine Propulsion Aluminum Leg Leg Aluminum Leg Utility Medium Storage Unit Device Improved Heat Sink Storage Medium Storage Unit Weapon Light Assault Rifle Energy Gun Medium Laser Ballistic Gun Light Assault Rifle Special Melee Weapon Datajack Build | -11 -10 -10 -10 ------- Run | Yrd Mat Min Sub Slots Evolved . | . . . . Power . | . . . . Propulsion . | . . . . Utility . | . . . . Weapon . | . . . . Parts Attached 14 | 6 1 . 7 Power 2 | 1 . . 1 Engine 2 | 1 . . 1 Core . | . . . . Reactor . | . . . . Propulsion 3 | 2 . . 1 Treads . | . . . . Leg 3 | 2 . . 1 Wheel . | . . . . Hover . | . . . . Flight . | . . . . Utility 4 | 1 1 . 2 Device 2 | . . . 2 Storage 2 | 1 1 . . Processor . | . . . . Hackware . | . . . . Protection . | . . . . Artifact . | . . . . Weapon 5 | 2 . . 3 Energy Gun 1 | 1 . . . Energy Cannon . | . . . . Ballistic Gun 3 | 1 . . 2 Ballistic Cannon . | . . . . Launcher . | . . . . Special Weapon . | . . . . Impact Weapon . | . . . . Slashing Weapon . | . . . . Piercing Weapon . | . . . . Special Melee Weapon 1 | . . . 1 Unidentified Prototypes . | . . . . Parts Lost 5 | . . . 5 Power . | . . . . Propulsion 1 | . . . 1 Utility . | . . . . Weapon 4 | . . . 4 Highest Loss Streak 4 | . . . 4 To Critical Strikes . | . . . . Average Backups 7 | 2 6 9 8 Power 1 | . 1 2 2 Propulsion 3 | 1 2 4 4 Utility . | . . 1 . Weapon . | . 1 1 . Tool/Special . | . . . . Unused Backups 4 | . . . 4 Power 1 | . . . 1 Propulsion 3 | . . . 3 Utility . | . . . . Weapon . | . . . . Tool/Special . | . . . . Average Slot Usage (%) 98 | . 99 100 98 Engine 14 | . 14 14 14 Leg 27 | . 28 28 27 Device 5 | . . . 9 Storage 22 | . 27 28 17 Energy Gun 10 | . 14 14 6 Ballistic Gun 16 | . 14 14 18 Peak Build Rating 10 | 6 8 8 10 Average Rating 8 | 4 7 8 9 On Entrance 5 | . 6 8 8 Avg Prop Armor Cover (%) . | . . . . Naked Turns . | . . . . Heaviest Build 23 | 13 23 23 23 Greatest Support 20 | 20 20 20 20 Greatest Overweight (x) 1 | . 1 1 1 Average Overweight (x) . | . . 1 . Largest Inventory Capacity 10 | 8 10 10 10 Average Capacity 9 | 6 9 10 10 Most Carried 10 | 4 9 9 10 Average Carried 7 | 2 6 9 8 Final Capacity 10 | 8 10 10 10 Final Carried 9 | 4 9 9 6 Class Distribution -------------------- 100% | Mutant Dominant Class ---------------- Mutant | -10/Materials Mutant | -10/Mines Mutant | -10/Subcaves Resources | -11 -10 -10 -10 ----------- Run | Yrd Mat Min Sub Matter Collected 310 | 177 103 . 30 Remotely . | . . . . Salvage Created 249 | . 105 . 144 Parts 13 | . 5 . 8 Haulers Intercepted . | . . . . Recyclers Shooed . | . . . . Parts Field Recycled . | . . . . Retrieved Matter . | . . . . Parts Self-Destructed 5 | . . . 5 Prevented . | . . . . Parts Restored . | . . . . Kills | -11 -10 -10 -10 ------- Run | Yrd Mat Min Sub Combat Hostiles Destroyed 6 | . 2 . 4 Guns 6 | . 2 . 4 Classes Destroyed 5 | . 2 . 3 Watcher 1 | . 1 . . Swarmer 1 | . . . 1 Grunt 2 | . 2 . . Sentry 1 | . . . 1 Subdweller 2 | . . . 2 Best Kill Streak 2 | . 2 . 2 Combat Bots Only 2 | . 2 . 2 Max Kills in Single Turn 1 | . 1 . 1 Gunslinging . | . . . . Exploded . | . . . . Melee . | . . . . Uniques/NPCs Destroyed . | . . . . Combat | -11 -10 -10 -10 -------- Run | Yrd Mat Min Sub Hostile Shots Fired 63 | . 12 . 51 Missed 19 | . 3 . 16 Hits 44 | . 9 . 35 Projectile 44 | . 9 . 35 AOE 5 | . . . 5 Critical Strikes 2 | . . . 2 Damage Taken 1054 | . 138 . 916 Core 255 | . 18 . 237 Absorbed by Shields . | . . . . Core Remaining (%) 100 | 100 . . . Volleys Fired 31 | . 12 . 19 Largest 2 | . 2 . 2 Hottest 70 | . 70 . 70 Shots Fired 53 | . 24 . 29 Gun 53 | . 24 . 29 Cannon . | . . . . Launcher . | . . . . Special . | . . . . Kinetic 33 | . 12 . 21 Thermal 20 | . 12 . 8 Explosive . | . . . . Electromagnetic . | . . . . Robot Hit Streak 14 | . 9 . 14 Robot Miss Streak 2 | . 2 . 2 Penetration Max . | . . . . Secondary Targets 1 | . 1 . . Max Gunslinging Chain 1 | . 1 . . Shots Hit Robots 41 | . 15 . 26 Core Hits 15 | . 7 . 8 Critical Kills . | . . . . Critical Parts Destroyed . | . . . . Critical Strikes 3 | . 1 . 2 Burn 2 | . 1 . 1 Destroy 1 | . . . 1 Melee Attacks 1 | . . . 1 Impact . | . . . . Slashing . | . . . . Piercing . | . . . . Sneak Attacks . | . . . . Combat Hostiles . | . . . . Follow-up Attacks . | . . . . Damage Inflicted 404 | . 153 . 251 Guns 404 | . 153 . 251 Cannons . | . . . . Explosions . | . . . . Melee . | . . . . Ramming . | . . . . Kinetic 239 | . 76 . 163 Thermal 165 | . 77 . 88 Explosive . | . . . . Electromagnetic . | . . . . Impact . | . . . . Slashing . | . . . . Piercing . | . . . . Highest Corruption . | . . . . Average Corruption . | . . . . Corruption Purged . | . . . . Corruption Blocked . | . . . . Overload Shots . | . . . . Overflow Damage . | . . . . Projectiles . | . . . . Explosions . | . . . . Melee . | . . . . Knockbacks . | . . . . Impact . | . . . . Kinetic . | . . . . Secondary . | . . . . Self-Inflicted Damage . | . . . . Shots . | . . . . Rammed . | . . . . Targets Rammed . | . . . . Kicked . | . . . . Crushed . | . . . . Highest Temperature 103 | . 103 . 6 Average Temperature 35 | . 38 . 3 Received Heat Transfer 216 | . 78 . 138 Siege Activations . | . . . . Martial Activations . | . . . . Shielding Activations . | . . . . Robots Disrupted . | . . . . Combat Hostiles . | . . . . Robots Corrupted . | . . . . Combat Hostiles . | . . . . Parts Fried . | . . . . Impact Corruptions . | . . . . Robots Melted . | . . . . Combat Hostiles . | . . . . Parts Melted 3 | . 1 . 2 Heat Transferred 629 | . 296 . 333 Parts Sabotaged . | . . . . Parts Stolen . | . . . . Parts Stripped . | . . . . Power Chain Reactions . | . . . . Alert | -11 -10 -10 -10 ------- Run | Yrd Mat Min Sub Maximum Alert Level . | . . . . Low Security (%) 100 | 100 100 100 . Level 1 . | . . . . Level 2 . | . . . . Level 3 . | . . . . Level 4 . | . . . . Level 5 . | . . . . High Security . | . . . . Max Security . | . . . . Peak Influence 50 | . 50 . . Initial . | . . . . Average 3 | . 4 . . Influence Increases 97 | . 57 . 40 Destroy 0b10 Robot/C 80 | . 40 . 40 Destroy 0b10 Robot/NC 5 | . 5 . . Destroy Leader 12 | . 12 . . Influence Decreases 97 | . 57 . 40 Time Decay 97 | . 57 . 40 Squads Dispatched 1 | . 1 . . Investigation . | . . . . Extermination . | . . . . Reinforcement 1 | . 1 . . Assault . | . . . . Garrison . | . . . . Intercept . | . . . . Searches Triggered . | . . . . Construction Impeded . | . . . . Haulers Reinforced . | . . . . Active Scanning Responses . | . . . . Cargo Convoy Interrupts . | . . . . Stealth | -11 -10 -10 -10 --------- Run | Yrd Mat Min Sub Distress Signals 1 | . 1 . . Communications Jammed . | . . . . Distress Signals . | . . . . Times Spotted 15 | . 6 . 9 Peak Tracking Total 5 | . 3 . 5 Tactical Retreats . | . . . . Traps | -11 -10 -10 -10 ------- Run | Yrd Mat Min Sub Traps Triggered 2 | . . . 2 Indirectly . | . . . . Trap Hack Attempts . | . . . . Triggered . | . . . . Disarmed . | . . . . Reprogrammed . | . . . . Reused . | . . . . Traps Extracted . | . . . . Installed . | . . . . Triggered . | . . . . Machines | -11 -10 -10 -10 ---------- Run | Yrd Mat Min Sub Machines Disabled . | . . . . Max in Single Turn . | . . . . Machines Repaired . | . . . . Machines Dismantled . | . . . . Machines Sabotaged . | . . . . Overloaded Fab Kills . | . . . . Hacking | -11 -10 -10 -10 --------- Run | Yrd Mat Min Sub Machines Accessed . | . . . . Terminals . | . . . . Fabricators . | . . . . Repair Stations . | . . . . Recycling Units . | . . . . Scanalyzers . | . . . . Garrison Access . | . . . . Total Hacks . | . . . . Successful . | . . . . Failed . | . . . . Catastrophic . | . . . . Database Lockouts . | . . . . Manual . | . . . . Terminals . | . . . . Fabricators . | . . . . Repair Stations . | . . . . Recycling Units . | . . . . Scanalyzers . | . . . . Garrison Access . | . . . . Terminal Hacks . | . . . . Fabricator Hacks . | . . . . Repair Station Hacks . | . . . . Recycling Unit Hacks . | . . . . Scanalyzer . | . . . . Garrison Access Hacks . | . . . . Unauthorized Hacks . | . . . . Terminals . | . . . . Fabricators . | . . . . Repair Stations . | . . . . Recycling Units . | . . . . Scanalyzers . | . . . . Garrison Access . | . . . . Data Cores Recovered . | . . . . Used . | . . . . Hacking Detections . | . . . . Full Trace Events . | . . . . Feedback Events . | . . . . Feedback Blocked . | . . . . Robot Schematics Acquired . | . . . . Robots Built . | . . . . Authchips . | . . . . Time . | . . . . Total Robot Build Rating . | . . . . Part Schematics Acquired . | . . . . Parts Built . | . . . . Authchips . | . . . . Time . | . . . . Total Part Build Rating . | . . . . Part Studies Acquired . | . . . . Parts Repaired . | . . . . Time . | . . . . Parts Recycled . | . . . . Recycled Matter . | . . . . Retrieved Matter . | . . . . Retrieved Components . | . . . . Parts Scanalyzed . | . . . . Part Schematics Acquired . | . . . . Parts Damaged . | . . . . Bothacking | -11 -10 -10 -10 ------------ Run | Yrd Mat Min Sub Used RIF Installer . | . . . . Robots Hacked 1 | . . . 1 Non-combat . | . . . . Combat 1 | . . . 1 Robot Hacks Applied 1 | . . . 1 parse_system 1 | . . . 1 Relay Couplers Released . | . . . . Fabnet Peak Effective % . | . . . . Robots Rewired . | . . . . Allies Hacked . | . . . . Hacks Repelled . | . . . . Allies | -11 -10 -10 -10 -------- Run | Yrd Mat Min Sub Total Allies . | . . . . Largest Group . | . . . . Highest-Rated Group . | . . . . Highest-Rated Ally . | . . . . Total Orders . | . . . . Ally Attacks . | . . . . Total Damage . | . . . . Kills . | . . . . Allies Corrupted . | . . . . Allies Melted . | . . . . Intel | -11 -10 -10 -10 ------- Run | Yrd Mat Min Sub Active Infowar (turns) 167 | . . . 167 Optics 167 | . . . 167 Robot Analysis Total . | . . . . Derelict Logs Recovered . | . . . . Drone Launches . | . . . . Drone Recoveries . | . . . . Exploration | -11 -10 -10 -10 ------------- Run | Yrd Mat Min Sub Turns Passed 1393 | 90 486 145 672 Spaces Moved 742 | 67 232 77 366 Core 4 | 4 . . . Treads . | . . . . Legs 738 | 63 232 77 366 Wheels . | . . . . Hover . | . . . . Flight . | . . . . Fastest Speed 50 | 50 120 190 120 Average Speed 171 | 115 187 190 167 Slowest Speed 190 | 120 190 190 190 Overloaded Moves . | . . . . Propulsion Burnouts . | . . . . Robots Hopped . | . . . . Potential Cave-ins . | . . . . Cave-ins Triggered . | . . . . Exploration Rate (%) 19 | 3 28 20 26 Regions Visited 3 Branch Regions 2 Pre-discovered Areas . | . . . . Known Exits Taken . | . . . . Unknown Exits Taken 3 | 1 1 1 . Scrap Searched . | . . . . Spaces Dug . | . . . . Terrain Destroyed . | . . . . Melee . | . . . . Projectile . | . . . . AOE . | . . . . Terrain Rammed . | . . . . Walls Destroyed . | . . . . Machines Disabled . | . . . . Actions | -11 -10 -10 -10 --------- Run | Yrd Mat Min Sub Total 810 | 76 260 76 398 Wait 12 | . 11 . 1 Move 739 | 66 231 76 366 Hop . | . . . . Pick Up 10 | 4 5 . 1 Fast Attach 8 | 6 1 . 1 Attach 4 | . . . 4 Detach . | . . . . Swap 2 | . . . 2 Drop 3 | . . . 3 Fire 31 | . 12 . 19 Melee 1 | . . . 1 Ram . | . . . . Kick . | . . . . Crush . | . . . . Escape Stasis . | . . . . Rewire . | . . . . Trap . | . . . . Miscellaneous . | . . . . Route ------- -11/Scrapyard -10/Materials -10/Mines -10/Subcaves History --------- Turn | Location | Event 19 | -11/Scrapyard | Discovered new exit (range 14) 91 | -11/Scrapyard | Entered Materials 311 | -10/Materials | Build established: Mutant 545 | -10/Materials | Discovered new exit (range 12) 577 | -10/Materials | Entered Mines 578 | -10/Mines | Assembled infested the area 583 | -10/Mines | Assisted by a Guerilla fighting off Assembled 699 | -10/Mines | Discovered new exit (range 9) 722 | -10/Mines | Entered Subcaves 1385 | -10/Subcaves | Core integrity fell below 50% 1386 | -10/Subcaves | Ambushed by Subdweller buried in earth 1386 | -10/Subcaves | Ambushed by Subdweller buried in earth 1392 | -10/Subcaves | Core integrity fell below 20% 1394 | -10/Subcaves | Destroyed by 3M-D0N(R) with Subdweller Machine Gun Last Messages --------------- Triggered Piercing Trap. Spikes shoot up from the floor. Critical hit (Impale). Triggered Shrapnel Trap. An expanding cloud of shrapnel blasts out in all directions. Lgt. Assault Rifle destroyed. 1P-WEH(u) tweaks Twisted Machinery. PH-VIL(R) suffers critical hit (Destroy). Sub. Machine Gun destroyed. ZG-NRI(R): "FNKSAJDH!" Jacked PH-VIL(R)... >>parse_system Reading system data... Lgt. Assault Rifle destroyed. ZG-NRI(R) affixes Scrap Shield Fragment to Scrap Shield. Aluminum Leg destroyed. [Achievement: Do Not Disturb] IP-T8E(R): "ARGHSUB!" 3M-D0N(R): "SLEEPOVER!" Datajack destroyed. Map ----- +----------------------------------------------------+ | ????????????????????????????????????????????????? | | ????????????????????????????????????????????????? | | ????????????????????????????????????????????????? | | ????????????????????????????????????????????????? | | ????????????????????????????????????????????????? | | ????????????????????????????????????????????????? | | ????????????????????????????????????????????????? | | ????????????????????????????????????????????????? | | ????????????????????????????????????????????????? | | ????????????????????????????????????????????????? | | ?????????????????????????? ?????????????????????? | | ?????????????????????????? ???????????????????? | | ?????????????????????????? ##?????????????????? | | ????????????????????????? #?????????????????? | | ????????????????????????? ??????????????????? | | ????????????????????????? ??????????????????? | | ????????????????????????? #??????????????????? | | ????????????????????????? #??????????????????? | | ????????????????????????? #??????????????????? | | ????????????????????????? #??????????????????? | | ???????????????????????## #??????????????????? | | ???????????????????????# #??????????????????? | | ???????????????????????# #???????????????????? | | ????????????????######## #????????????????????? | | ???????????????## ; ##???????????????????? | | ???????????????# @ ##??????????????????? | | ?????????????### ;#??????????????????? | | ????????????## ;#??????????????????? | | ????????????# #??????????????????? | | ????????????# #??????????????????? | | ????????????##R #??????????????????? | | ???????????# <; RR ;#??????????????????? | | ???????????#$ #??????????????????? | | ???????????# & ; #??????????????????? | | ???????????#< # #######??????????????????? | | ???????????## ## #????????????????????????? | | ???????????# #< R##???????????????????????? | | ???????????# ##??????????????????????? | | ???????????# ## #??????????????????????? | | ?????????### # " ## #??????????????????????? | | ??????????"" ### ####??????????????????????? | | ?????????# " "?# ##????????????????????????? | | ???????? ?#$"## ##???????????????????????? | | ????????"???#""## ##??????????????????????? | | ??????????????# #??????????????????????? | | ??????????????# ###????????????????????? | | ??????????????# #????????????????????? | | ??????????????## ####????????????????????? | | ???????????????## ###?????????????????????? | | ????????????????## #?????????????????????? | +----------------------------------------------------+ Best States ------------- Heat Dissipation 39 Energy Generation 10 Energy Capacity 250 Matter Stores 300 Matter Capacity 300 Sight Range 21 Terrain Scan Density 10 Evasion (%) 55 Item Schematics ----------------- None Robot Schematics ------------------ None Fabricated ------------ Nothing Repaired ---------- Nothing Studied --------- None Alien Tech Used ----------------- None Achievements -------------- Do Not Disturb Challenges ------------ None Game ------ Seed MediumMachineRail Manual? 0 Play Time 00:07:08 Cumulative 4.2 hours Start 2026.02.05 @ 00:36:31 End 2026.02.05 @ 00:43:15 Sessions 1 Manual Loads 0 Difficulty Rogue Special Mode None Game No. 19 Rogue 16 Adventurer 0 Explorer 3 Win Type - Total 0 Types 0/0/0/0/0/0/0/0/0/0 Lore% 6 Gallery% 8 Achievement% 11 Wizard Run 0 Options --------- Layout 0 ASCII 0 Keyboard 0 Movement Arrows Keybinds 0 Fullscreen 1 Font 24/Smallcaps Map View 76x50 Zoom Use 0% Tactical HUD 0 Map Filters NONE Filters NONE Steam 1 RUN: 71d26157-7231-4d28-ad4f-eb517320308e